Cogmind - Beta 14 @@@ ROGUE MODE // 2024.09.28 @ 23:13:33 Player: P9H Result: Destroyed by G-47 Trooper with Particle Gun Performance ------------- Evolutions (2) 1000 Regions Visited (4) 800 Robots Destroyed (47) 235 Value Destroyed (1440) 1440 Prototype IDs (1) 20 Alien Tech Used (0) 0 Bonus (123) 123 TOTAL SCORE: 3618 Bonus ------- High Alert Combat Kills 123 Cogmind --------- Core Integrity 0/550 Matter 61/300 Energy 248/275 System Corruption 0% Temperature Cool (9) Movement Rolling (120) Ox1 Location -8/Storage Parts ------- > --- POWER (2) -------- Deuterium Engine > --- PROPULSION (2) --- Subdweller Monowheel > --- UTILITY (4) ------ Improved Heat Sink Improved Heat Sink Particle Charger > --- WEAPON (3) ------- Light Assault Rifle Grenade Launcher Improved Grenade Launcher > --- INVENTORY (5) ---- Terrain Scanner Peak State ------------ > --- POWER ------------ Ion Engine Light Nuclear Core > --- PROPULSION ------- Wheel Compact Wheel > --- UTILITY ---------- Heat Sink Improved Heat Sink Small Storage Unit Improved Terrain Scanner > --- WEAPON ----------- Beam Rifle Particle Gun Enhanced Autogun > --- INVENTORY -------- Deuterium Engine Subdweller Monowheel Heat Sink Particle Charger Beam Rifle Particle Gun Light Assault Rifle Mini Grenade Launcher [Rating: 23] Favorites ----------- Power Light Ion Engine Engine Light Ion Engine Power Core Light Nuclear Core Propulsion Compact Wheel Wheel Compact Wheel Utility Small Storage Unit Device Heat Sink Storage Small Storage Unit Protection Reflective Plating Weapon Assault Rifle Energy Gun Beam Rifle Ballistic Gun Assault Rifle Launcher Mini Grenade Launcher Build | -11 -10 -10 -8 -8 ------- Run | Yrd Mat Sub Mat Sto Slots Evolved 4 | . . . 4 . Power 1 | . . . 1 . Propulsion . | . . . . . Utility 2 | . . . 2 . Weapon 1 | . . . 1 . Parts Attached 38 | 7 . 3 14 14 Power 6 | 1 . 1 2 2 Engine 5 | 1 . 1 1 2 Core 1 | . . . 1 . Reactor . | . . . . . Propulsion 6 | 2 . 1 2 1 Treads . | . . . . . Leg . | . . . . . Wheel 6 | 2 . 1 2 1 Hover . | . . . . . Flight . | . . . . . Utility 12 | 2 . . 5 5 Device 10 | 1 . . 5 4 Storage 1 | 1 . . . . Processor . | . . . . . Hackware . | . . . . . Protection 1 | . . . . 1 Artifact . | . . . . . Weapon 14 | 2 . 1 5 6 Energy Gun 6 | . . 1 3 2 Energy Cannon . | . . . . . Ballistic Gun 5 | 2 . . 2 1 Ballistic Cannon . | . . . . . Launcher 3 | . . . . 3 Special Weapon . | . . . . . Impact Weapon . | . . . . . Slashing Weapon . | . . . . . Piercing Weapon . | . . . . . Special Melee Weapon . | . . . . . Unidentified Prototypes 1 | . . . 1 . Parts Lost 22 | . . 2 3 17 Power 5 | . . 1 1 3 Propulsion 5 | . . 1 2 2 Utility 6 | . . . . 6 Weapon 6 | . . . . 6 Highest Loss Streak 10 | . . 2 2 10 To Critical Strikes . | . . . . . Average Slot Usage (%) 90 | . 100 98 92 72 Engine 12 | . 14 13 13 8 Core 1 | . . . 2 2 Wheel 19 | . 28 27 15 10 Device 20 | . 14 14 27 21 Storage 9 | . 14 14 9 3 Energy Gun 8 | . . 4 16 10 Ballistic Gun 16 | . 28 23 9 8 Launcher 1 | . . . . 6 Peak Build Rating 23 | 9 9 10 23 22 Average Rating 13 | 4 9 9 16 16 On Entrance 9 | . 9 9 10 21 Naked Turns . | . . . . . Heaviest Build 27 | 13 13 17 27 27 Greatest Support 32 | 32 32 32 26 26 Greatest Overweight (x) 8 | . . . 8 1 Average Overweight (x) . | . . . . . Largest Inventory Capacity 8 | 8 8 8 8 8 Average Capacity 7 | 6 8 8 8 6 Most Carried 8 | 8 8 8 8 8 Average Carried 6 | 3 7 7 7 4 Final Capacity 8 | 8 8 8 8 5 Final Carried 8 | 8 8 8 8 1 Class Distribution -------------------- 56% | Mutant 24% | Scavenger-Gunner 16% | Scavenger-Skirmisher Dominant Class ---------------- Mutant | -10/Materials Mutant | -10/Subcaves Scavenger-Skirmisher | -8/Materials Scavenger-Gunner | -8/Storage Resources | -11 -10 -10 -8 -8 ----------- Run | Yrd Mat Sub Mat Sto Matter Collected 804 | 294 . 116 233 161 Remotely . | . . . . . Salvage Created 1649 | 101 . 101 559 888 Parts 94 | 5 . 4 38 47 Haulers Intercepted . | . . . . . Recyclers Shooed 1 | . . . . 1 Parts Field Recycled . | . . . . . Retrieved Matter . | . . . . . Parts Self-Destructed 6 | . . 6 . . Prevented . | . . . . . Kills | -11 -10 -10 -8 -8 ------- Run | Yrd Mat Sub Mat Sto Combat Hostiles Destroyed 35 | . . 2 13 20 Guns 21 | . . 2 13 6 AOE 14 | . . . . 14 Classes Destroyed 10 | 2 . 1 5 2 Worker 3 | . . . 2 1 Builder 2 | . . . . 2 Tunneler 1 | 1 . . . . Recycler 4 | 1 . . 2 1 Operator 1 | . . . . 1 Watcher 1 | . . . 1 . Swarmer 8 | . . . 8 . Grunt 17 | . . . 3 14 Sentry 8 | . . . 2 6 Subdweller 2 | . . 2 . . Best Kill Streak 10 | 2 . 2 6 10 Combat Bots Only 8 | . . 2 4 8 Max Kills in Single Turn 3 | 1 . 1 2 3 Gunslinging . | . . . . . Exploded 3 | . . . . 3 Melee . | . . . . . Uniques/NPCs Destroyed . | . . . . . Combat | -11 -10 -10 -8 -8 -------- Run | Yrd Mat Sub Mat Sto Hostile Shots Fired 187 | . . 32 46 109 Missed 57 | . . 13 12 32 Damage Taken 2268 | . . 348 373 1547 Core 625 | . . 74 52 499 Absorbed by Shields . | . . . . . Ignored by Resistances 10 | . . . . 10 Core Remaining (%) 85 | 100 . 70 . . Volleys Fired 103 | 4 . 16 30 53 Largest 3 | 2 . 2 3 3 Hottest 146 | 40 . 40 146 146 Shots Fired 241 | 8 . 32 83 118 Gun 216 | 8 . 32 83 93 Cannon . | . . . . . Launcher 25 | . . . . 25 Special . | . . . . . Kinetic 114 | 8 . 32 30 44 Thermal 102 | . . . 53 49 Explosive 25 | . . . . 25 Electromagnetic . | . . . . . Robot Hit Streak 10 | 3 . 9 9 10 Robot Miss Streak 3 | 1 . 2 3 2 Penetration Max . | . . . . . Secondary Targets 3 | . . . 3 . Max Gunslinging Chain 1 | . . . 1 . Shots Hit Robots 151 | 5 . 23 46 77 Core Hits 92 | 3 . 4 27 58 Critical Kills . | . . . . . Critical Parts Destroyed 2 | . . . 1 1 Critical Strikes 8 | . . . 4 4 Burn 6 | . . . 3 3 Destroy 2 | . . . 1 1 Melee Attacks . | . . . . . Impact . | . . . . . Slashing . | . . . . . Piercing . | . . . . . Sneak Attacks . | . . . . . Combat Hostiles . | . . . . . Follow-up Attacks . | . . . . . Damage Inflicted 3722 | 62 . 292 720 2648 Guns 1924 | 62 . 292 720 850 Cannons . | . . . . . Explosions 1798 | . . . . 1798 Melee . | . . . . . Ramming . | . . . . . Kinetic 857 | 62 . 292 195 308 Thermal 1067 | . . . 525 542 Explosive 1798 | . . . . 1798 Electromagnetic . | . . . . . Impact . | . . . . . Slashing . | . . . . . Piercing . | . . . . . Highest Corruption . | . . . . . Average Corruption . | . . . . . Corruption Purged . | . . . . . Corruption Blocked . | . . . . . Overload Shots . | . . . . . Overflow Damage 62 | . . . . 62 Projectiles . | . . . . . Explosions 62 | . . . . 62 Melee . | . . . . . Knockbacks . | . . . . . Impact . | . . . . . Kinetic . | . . . . . Secondary . | . . . . . Self-Inflicted Damage 336 | . . . . 336 Shots 13 | . . . . 13 Rammed . | . . . . . Targets Rammed . | . . . . . Kicked . | . . . . . Crushed . | . . . . . Highest Temperature 104 | . . . 104 83 Average Temperature 27 | . . . 34 21 Received Heat Transfer 846 | . . 135 117 594 Siege Activations . | . . . . . Robots Corrupted . | . . . . . Combat Hostiles . | . . . . . Parts Fried . | . . . . . Impact Corruptions . | . . . . . Robots Melted . | . . . . . Combat Hostiles . | . . . . . Parts Melted 7 | . . . 2 5 Heat Transferred 2888 | . . . 1408 1480 Parts Sabotaged . | . . . . . Parts Stolen . | . . . . . Parts Stripped . | . . . . . Power Chain Reactions . | . . . . . Alert | -11 -10 -10 -8 -8 ------- Run | Yrd Mat Sub Mat Sto Peak Influence 631 | 10 21 . 330 631 Initial 98 | . 6 . . 98 Average 153 | 2 20 . 147 362 Maximum Alert Level 2 | . . . 1 2 Low Security (%) 68 | 100 100 . 65 27 Level 1 20 | . . . 34 29 Level 2 11 | . . . . 43 Level 3 . | . . . . . Level 4 . | . . . . . Level 5 . | . . . . . High Security . | . . . . . Max Security . | . . . . . Squads Dispatched 7 | . 1 . 1 5 Investigation 1 | . . . 1 . Extermination . | . . . . . Reinforcement 4 | . 1 . . 3 Assault . | . . . . . Garrison 2 | . . . . 2 Intercept . | . . . . . Searches Triggered . | . . . . . Construction Impeded 1 | . . . . 1 Haulers Reinforced . | . . . . . Active Scanning Responses . | . . . . . Cargo Convoy Interrupts . | . . . . . Stealth | -11 -10 -10 -8 -8 --------- Run | Yrd Mat Sub Mat Sto Distress Signals 5 | . . . 2 3 Communications Jammed . | . . . . . Distress Signals . | . . . . . Times Spotted 53 | . 1 5 20 27 Peak Tracking Total 8 | . 2 3 5 8 Tactical Retreats 3 | . . . 1 2 Traps | -11 -10 -10 -8 -8 ------- Run | Yrd Mat Sub Mat Sto Traps Triggered 1 | . . . 1 . Indirectly . | . . . . . Trap Hack Attempts . | . . . . . Triggered . | . . . . . Disarmed . | . . . . . Reprogrammed . | . . . . . Reused . | . . . . . Traps Extracted . | . . . . . Installed . | . . . . . Triggered . | . . . . . Machines | -11 -10 -10 -8 -8 ---------- Run | Yrd Mat Sub Mat Sto Machines Disabled 3 | . . . 1 2 Max in Single Turn 1 | . . . 1 1 Garrison Access 1 | . . . . 1 Machines Repaired . | . . . . . Machines Dismantled . | . . . . . Machines Sabotaged . | . . . . . Overloaded Fab Kills . | . . . . . Hacking | -11 -10 -10 -8 -8 --------- Run | Yrd Mat Sub Mat Sto Machines Accessed 3 | . . . 1 2 Terminals 2 | . . . 1 1 Fabricators . | . . . . . Repair Stations . | . . . . . Recycling Units . | . . . . . Scanalyzers . | . . . . . Garrison Access 1 | . . . . 1 Total Hacks 4 | . . . 1 3 Successful 3 | . . . 1 2 Failed 1 | . . . . 1 Catastrophic . | . . . . . Database Lockouts . | . . . . . Manual . | . . . . . Terminals 2 | . . . 1 1 Fabricators . | . . . . . Repair Stations . | . . . . . Recycling Units . | . . . . . Scanalyzers . | . . . . . Garrison Access 2 | . . . . 2 Terminal Hacks 2 | . . . 1 1 Open Door 1 | . . . . 1 Branch Access Points 1 | . . . 1 . Fabricator Hacks . | . . . . . Repair Station Hacks . | . . . . . Recycling Unit Hacks . | . . . . . Scanalyzer . | . . . . . Garrison Access Hacks 1 | . . . . 1 Seal Access 1 | . . . . 1 Unauthorized Hacks . | . . . . . Terminals . | . . . . . Fabricators . | . . . . . Repair Stations . | . . . . . Recycling Units . | . . . . . Scanalyzers . | . . . . . Garrison Access . | . . . . . Data Cores Recovered . | . . . . . Used . | . . . . . Hacking Detections . | . . . . . Full Trace Events . | . . . . . Feedback Events . | . . . . . Feedback Blocked . | . . . . . Robot Schematics Acquired . | . . . . . Robots Built . | . . . . . Authchips . | . . . . . Time . | . . . . . Total Robot Build Rating . | . . . . . Part Schematics Acquired . | . . . . . Parts Built . | . . . . . Authchips . | . . . . . Time . | . . . . . Total Part Build Rating . | . . . . . Parts Repaired . | . . . . . Time . | . . . . . Parts Recycled . | . . . . . Recycled Matter . | . . . . . Retrieved Matter . | . . . . . Retrieved Components . | . . . . . Parts Scanalyzed . | . . . . . Part Schematics Acquired . | . . . . . Parts Damaged . | . . . . . Bothacking | -11 -10 -10 -8 -8 ------------ Run | Yrd Mat Sub Mat Sto Used RIF Installer . | . . . . . Robots Hacked . | . . . . . Non-combat . | . . . . . Combat . | . . . . . Robot Hacks Applied . | . . . . . Relay Couplers Released . | . . . . . Fabnet Peak Effective % . | . . . . . Robots Rewired . | . . . . . Allies Hacked . | . . . . . Hacks Repelled . | . . . . . Allies | -11 -10 -10 -8 -8 -------- Run | Yrd Mat Sub Mat Sto Total Allies . | . . . . . Largest Group . | . . . . . Highest-Rated Group . | . . . . . Highest-Rated Ally . | . . . . . Total Orders . | . . . . . Ally Attacks . | . . . . . Total Damage . | . . . . . Kills . | . . . . . Allies Corrupted . | . . . . . Allies Melted . | . . . . . Intel | -11 -10 -10 -8 -8 ------- Run | Yrd Mat Sub Mat Sto Robot Analysis Total . | . . . . . Derelict Logs Recovered . | . . . . . Drone Launches . | . . . . . Drone Recoveries . | . . . . . Exploration | -11 -10 -10 -8 -8 ------------- Run | Yrd Mat Sub Mat Sto Turns Passed 1447 | 79 400 173 466 329 Spaces Moved 745 | 47 91 108 350 149 Core 6 | 4 . . 2 . Treads . | . . . . . Legs . | . . . . . Wheels 739 | 43 91 108 348 149 Hover . | . . . . . Flight . | . . . . . Fastest Speed 50 | 50 100 90 90 90 Average Speed 100 | 95 100 93 99 111 Slowest Speed 450 | 100 100 100 450 120 Overloaded Moves . | . . . . . Propulsion Burnouts . | . . . . . Robots Hopped . | . . . . . Cave-ins Triggered . | . . . . . Exploration Rate (%) 16 | 4 14 9 24 32 Regions Visited 4 Branch Regions 2 Pre-discovered Areas . | . . . . . Known Exits Taken 1 | . . . 1 . Unknown Exits Taken 3 | 1 1 1 . . Scrap Searched . | . . . . . Spaces Dug 6 | . . . . 6 Terrain Destroyed 94 | . . . . 94 Melee . | . . . . . Projectile . | . . . . . AOE 94 | . . . . 94 Terrain Rammed . | . . . . . Walls Destroyed . | . . . . . Machines Disabled . | . . . . . Actions | -11 -10 -10 -8 -8 --------- Run | Yrd Mat Sub Mat Sto Total 1257 | 72 401 148 411 225 Wait 317 | . 305 12 . . Move 741 | 46 90 107 349 149 Hop . | . . . . . Pick Up 39 | 15 3 6 7 8 Fast Attach 6 | . . . 6 . Attach 26 | 7 . 2 3 14 Detach . | . . . . . Swap 6 | . . 1 5 . Drop 19 | . 3 4 11 1 Fire 103 | 4 . 16 30 53 Melee . | . . . . . Ram . | . . . . . Kick . | . . . . . Crush . | . . . . . Escape Stasis . | . . . . . Rewire . | . . . . . Trap . | . . . . . Miscellaneous . | . . . . . Route ------- -11/Scrapyard -10/Materials -10/Subcaves -8/Materials -8/Storage History --------- Turn | Location | Event 21 | -11/Scrapyard | Discovered new exit (range 16) 80 | -11/Scrapyard | Entered Materials 129 | -10/Materials | Discovered new exit (range 16) 301 | -10/Materials | Build established: Mutant 480 | -10/Materials | Entered Subcaves 639 | -10/Subcaves | Discovered new exit (range 14) 653 | -10/Subcaves | Entered Materials 653 | -8/Materials | Evolved 4 slots: Power x1, Utility x2, Weapon x1 692 | -8/Materials | Identified exit to Storage 1119 | -8/Materials | Entered Storage 1168 | -8/Storage | Garrison activated, responded to threat 1223 | -8/Storage | Core integrity fell below 50% 1253 | -8/Storage | Lost 10 parts (2p2n3u3w) 1254 | -8/Storage | Destroyed 8 combat bots 1292 | -8/Storage | Core integrity fell below 20% 1305 | -8/Storage | Garrison activated, responded to threat 1360 | -8/Storage | Lost 3 parts (2u1w) 1448 | -8/Storage | Destroyed by G-47 Trooper with Particle Gun Last Messages --------------- 01396_ U-05 Engineer builds a Wall. 01396_ U-05 Engineer lays Concrete. 01397_ U-05 Engineer builds a Wall. 01400_ U-05 Engineer builds a Door. 01402_ U-05 Engineer lays Concrete. 01404_ U-05 Engineer builds a Wall. 01404_ U-05 Engineer lays Concrete. 01406_ W-25 Informer sends out distress signal. 01410_ Acquired 53 matter. 01423_ Lgt. Deuterium Engine destroyed. 01427_ Y-45 Defender destroyed. 01429_ K-01 Serf collects debris. 01439_ The unstable cave ceiling collapses. 01439_ K-01 Serf collects debris. 01441_ Mni. Grenade Launcher destroyed. 01444_ Particle Gun destroyed. 01448_ Y-45 Defender destroyed. 01448_ G-50 Soldier destroyed. 01448_ Destroyed Com. Wheel. 01448_ Y-45 Defender destroyed. Map ----- +----------------------------------------------------+ | ????????????????????????????????????????????????? | | ????????????????????????????????????????????????? | | ????????????????????????????????????????????????? | | ????????????????????????????????????????????????? | | ????????????????????????????????????????????????? | | ????????????????????????????????????????????????? | | ????????????????????????????????????????????????? | | ????????????????????????????????????????????????? | | ????????????????????????????????????????????????? | | ????????????????????????????????????????????????? | | ????????????????????????????????????????????????? | | ????????????????????????????????????????????????? | | ????????????????????????????????????????????????? | | ????????????????????????????????????????????????? | | ????????????????????????????????????????????????? | | ????????????????????????????????????????????????? | | ???????????????????#????????????????????????????? | | ???????????????????# ???????????????????????????? | | ???????????????????# ???????????????????????????? | | ???????????????????# ???????###????????????????? | | ???????????????????#k ??????"[[?????????????????? | | ???????????????????#k ???? ]??????????????????? | | ??????????????????## #?# ########????????????? | | ??????????????????# a##+ ##???????????? | | ??????????????????# ![ #???????????? | | ???????????????? + =%! @ #???????????? | | ??????????????????# ! !*%% #???????????? | | ??????????????????# ## =r= +?????????? | | ??????????????????######??## g ###?????????? | | ????????????????????###?###??## # #???????????? | | ????????????????????# ? ????# ## #???????????? | | ????????????????????# """ """??# ## #???????????? | | ????????????????????# """ """ ## ## #???????????? | | ????????????????????# """ """ # # #???????????? | | ????????????????????# """ """ + # #?????????##? | | ????????????????????# """ """ # # ##### | | ????????????????????# ## | | ??????????????####### / ## ##### #??? | | ?????????????##"T"## ###+## ###?????????? | | ??????????#### ###?????????? | | ??????????# "" #?????????? | | ??????????#"G ! % #####?????? | | ??????????# "" """ " # = # ##????? | | ??????????#### """ " + ! ##????? | | ?????????????# """ " # % #????? | | ?????????????# % ##????? | | ?????????????# ! ##????? | | ?????????????######## ## # #????? | | ????????????????????#### # % #????? | | ??????????????????#????# #####+##/## # #????? | +----------------------------------------------------+ Best States ------------- Heat Dissipation 65 Energy Generation 23 Energy Capacity 315 Matter Stores 300 Matter Capacity 300 Sight Range 16 Terrain Scan Range 16 Terrain Scan Density 10 Armor Coverage 150 Resistance: TH 10 Evasion (%) 42 Particle Charging 15 Item Schematics ----------------- None Robot Schematics ------------------ None Fabricated ------------ Nothing Alien Tech Used ----------------- None Achievements -------------- None Challenges ------------ None Game ------ Seed SignalShockSpoofer Manual? 0 Play Time 00:16:49 Cumulative 24.8 hours Start 2024.09.28 @ 22:54:35 End 2024.09.28 @ 23:13:33 Sessions 1 Manual Loads 0 Difficulty Rogue Special Mode None Game No. 53 Rogue 53 Adventurer 0 Explorer 0 Win Type - Total 0 Types 0/0/0/0/0/0/0/0/0 Lore% 4 Gallery% 24 Achievement% 20 Wizard Run 0 Options --------- Layout 1 ASCII 0 Keyboard 0 Movement Mouse Keybinds 0 Fullscreen 2 Font 32/SmallcapsGlow Map View 50x35 Zoom Use 0% Tactical HUD 1 Map Filters NONE Filters NONE Steam 1 RUN: f9dac653-becb-4e0c-827d-c39d7a2fdf3f